bitfinex/quotes_SOLUSD_20240612
["timestamp","ask_amount","ask_price","bid_price","bid_amount"]
[1718187659087,8.19,153.07,153.02,13.896675]
[1718187659088,8.19,153.07,153.05,2.4174]
[1718187660079,37.593,153.12,153.04,7.2529]
[1718187660260,8.19,153.09,153.07,2.4171]
[1718187661370,2.4166,153.11,153.07,2.4171]
[1718187661567,8.19,153.09,153.06,2.4172]
[1718187661897,10.6068,153.09,153.06,2.4172]
[1718187662570,8.19,153.09,153.06,2.4172]
[1718187662769,8.19,153.09,153.07,2.4171]
[1718187663798,8.19,153.09,153.06,2.4172]
[1718187664498,8.19,153.09,153.07,2.4171]
[1718187664688,8.19,153.09,153.06,2.4172]
[1718187664896,8.19,153.08,153.03,0.17]
[1718187665078,10.6071,153.08,153.05,2.4174]
[1718187665272,10.6071,153.08,153.04,2.4175]
[1718187665474,2.4172,153.07,153.04,2.4175]
[1718187665787,10.6072,153.07,153.04,2.4175]
[1718187666180,8.19,153.07,153.04,2.4175]
[1718187666384,8.19,153.07,153.05,2.4174]
[1718187666896,2.4171,153.08,153.05,2.4174]
[1718187667104,10.6071,153.08,153.05,2.4174]
[1718187667409,10.607,153.08,153.05,2.4174]
[1718187669097,8.19,153.08,153.05,2.4174]
[1718187669573,8.19,153.09,153.07,2.417]
[1718187669775,10.6067,153.1,153.07,2.417]
[1718187670972,8.19,153.1,153.06,4.8346]
[1718187671191,8.19,153.1,153.06,2.4172]
[1718187671372,10.6068,153.09,153.06,2.4172]
[1718187672283,8.19,153.09,153.05,4.835]
[1718187672583,8.19,153.09,153.07,2.4171]
[1718187672774,8.19,153.09,153.08,2.417]
[1718187673103,8.19,153.1,153.08,2.417]
[1718187673271,2.4167,153.1,153.07,2.417]
[1718187673475,10.6067,153.1,153.07,2.417]
[1718187674330,2.4167,153.1,153.07,2.417]
[1718187674478,10.6067,153.1,153.07,2.417]
[1718187675112,10.6069,153.09,153.06,2.4172]
[1718187677197,2.417,153.08,153.05,2.4174]
[1718187677399,8.19,153.07,153.05,2.4174]
[1718187677607,10.6072,153.07,153.04,2.4175]
[1718187677984,8.19,153.07,153.05,2.4174]
[1718187678607,2.4174,153.06,153.02,3.288575]
[1718187678809,8.19,153.05,153.02,3.288575]
[1718187679199,8.19,153.05,153.03,2.4178]
[1718187679613,8.19,153.05,153.04,2.4176]
[1718187680508,8.19,153.05,153.02,0.870775]
[1718187680715,10.6077,153.04,153.02,0.870775]
[1718187681095,8.19,153.05,153.03,2.4177]
[1718187681298,8.19,153.05,153.02,0.870775]
[1718187681515,10.6075,153.05,153.02,0.870775]
[1718187681692,10.6077,153.04,153.02,0.870775]
[1718187681894,10.6078,153.03,153.02,0.870775]
[1718187683501,8.19,153.03,153.02,0.870775]
[1718187683827,0.17,153.09,153.04,2.4175]
[1718187684000,2.4169,153.09,153.05,2.4174]
[1718187684202,2.4169,153.09,153.06,2.4173]
[1718187684420,10.6068,153.1,153.07,2.4171]
[1718187684722,10.6068,153.1,153.06,2.4172]
[1718187684723,2.4169,153.09,153.06,2.4172]
[1718187684895,10.6069,153.09,153.06,2.4172]
[1718187685614,6.384,153.12,153.09,2.4167]
[1718187685908,2.4168,153.1,153.05,13.0247]
[1718187686109,6.384,153.12,153.04,8.19]
[1718187686426,8.19,153.1,153.07,2.417]
[1718187686628,8.19,153.1,153.08,2.417]
[1718187686913,10.6066,153.11,153.08,2.417]
[1718187688490,2.4167,153.1,153.06,10.6072]
[1718187688695,2.4167,153.1,153.06,2.4172]
[1718187689120,10.6067,153.1,153.07,2.4171]
[1718187692826,2.4168,153.09,153.06,2.4173]
[1718187693007,10.6068,153.09,153.06,2.4173]
[1718187693528,8.19,153.09,153.06,2.4173]
[1718187693917,8.19,153.09,153.07,2.4171]
[1718187694318,10.6068,153.1,153.07,2.4171]
[1718187694521,10.6068,153.1,153.05,8.19]
[1718187694814,10.6068,153.1,153.06,2.4172]
[1718187695022,10.6068,153.1,153.07,2.4171]
[1718187695221,8.19,153.1,153.08,2.417]
[1718187695515,8.19,153.1,153.07,2.4171]
[1718187695516,10.6067,153.1,153.07,2.4171]
[1718187696296,2.4168,153.09,153.05,8.19]
[1718187696497,8.19,153.08,153.02,24.627575]
[1718187696723,8.19,153.08,153.04,2.4175]
[1718187696724,10.6071,153.08,153.04,2.4175]
[1718187696909,2.4172,153.07,153.04,2.4175]
[1718187697101,10.6072,153.07,153.04,2.4175]
[1718187697532,10.6074,153.06,153.03,2.4177]
[1718187697709,10.6074,153.06,153.02,3.288575]
[1718187698199,10.6074,153.06,153.03,2.4178]
[1718187698922,8.19,153.06,153.03,2.4178]
[1718187699108,8.19,153.06,153.04,2.4176]
[1718187699807,8.19,153.06,153.03,2.4177]
[1718187700636,8.19,153.06,153.04,2.4176]
[1718187702108,8.19,153.06,153.03,2.4177]
[1718187702815,10.6074,153.06,153.03,2.4177]
[1718187706534,2.4174,153.06,153.03,2.4177]
[1718187706708,10.6074,153.06,153.03,2.4177]
[1718187707531,10.6074,153.06,153.04,2.4176]
[1718187707532,8.19,153.06,153.04,2.4176]
[1718187708831,8.19,153.06,153.03,2.4177]
[1718187709334,8.19,153.06,153.02,0.870775]
[1718187709335,2.4178,153.03,153.02,0.870775]
[1718187709830,10.6078,153.03,153.02,0.870775]
[1718187710204,8.19,153.03,153.02,0.870775]
[1718187711117,8.19,153.04,153.02,3.288675]
[1718187711315,8.19,153.05,153.02,3.288675]
[1718187711859,10.6075,153.05,153.02,3.288675]
[1718187712411,10.6075,153.05,153.02,0.870775]
[1718187713345,2.4174,153.06,153.03,2.4178]
[1718187713525,2.4176,153.05,153.02,0.870775]
[1718187713716,10.6076,153.05,153.02,0.870775]
[1718187713917,8.19,153.05,153.02,3.288575]
[1718187714240,10.6076,153.05,153.02,0.870775]
[1718187714744,10.6077,153.04,153.02,0.870775]
[1718187715335,8.19,153.04,153.02,0.870775]
[1718187716344,8.19,153.04,153.02,3.288675]
[1718187717138,10.6078,153.03,153.02,0.870775]
[1718187718313,15.4434,153.03,153.02,0.870775]
[1718187719351,10.6078,153.03,153.02,0.870775]
[1718187719531,48.8858,153.03,153.02,0.870775]
[1718187719931,41.6324,153.03,153.02,0.870775]
[1718187720645,48.8858,153.03,153.02,0.870775]
[1718187720836,49.0558,153.03,153.02,0.870775]
[1718187721322,48.8858,153.03,153.02,0.870775]
[1718187723531,49.0558,153.03,153.02,0.870775]
[1718187724752,49.0558,153.03,152.94,16.6087]
[1718187724753,2.4187,152.98,152.94,2.4191]
[1718187724953,8.19,152.97,152.94,2.4191]
[1718187725422,10.6089,152.97,152.93,2.4193]
[1718187725627,8.19,152.97,152.92,8.19]
[1718187725843,10.6088,152.97,152.92,4.839]
[1718187726025,10.6089,152.96,152.93,2.4193]
[1718187726236,8.19,152.95,152.93,2.4193]
[1718187728149,8.19,152.95,152.91,4.8394]
[1718187728334,8.19,152.95,152.92,2.4195]
[1718187728734,8.19,152.95,152.92,2.4194]
[1718187729061,8.19,152.95,152.93,2.4193]
[1718187729944,8.19,152.94,152.92,2.4195]
[1718187730660,8.19,152.94,152.91,2.4196]
[1718187730842,8.19,152.94,152.92,2.4195]
[1718187731460,2.419,152.96,152.86,0.870775]
[1718187731461,0.17,152.91,152.86,0.870775]
[1718187731759,8.19,152.87,152.86,0.870775]
[1718187731955,8.19,152.88,152.86,0.870775]
[1718187732172,4.839,152.93,152.86,0.870775]
[1718187732473,2.42,152.89,152.86,0.870775]
[1718187732758,2.4198,152.91,152.87,2.4203]
[1718187733059,10.6099,152.9,152.86,3.291175]
[1718187733567,10.6099,152.9,152.86,0.870775]
[1718187733568,2.9301,152.89,152.86,0.870775]
[1718187733726,10.6099,152.9,152.86,3.291175]
[1718187733933,2.5898,152.91,152.87,2.4203]
[1718187734157,8.19,152.9,152.87,2.4203]
[1718187734458,2.4193,152.94,152.9,2.4197]
[1718187734661,26.709,152.95,152.88,8.19]
[1718187734662,10.6094,152.93,152.89,2.4199]
[1718187734834,8.19,152.92,152.87,20.2914]
[1718187735158,8.19,152.92,152.89,2.4199]
[1718187735533,8.19,152.92,152.9,2.4198]
[1718187735734,2.4193,152.94,152.91,2.4197]
[1718187735946,8.19,152.93,152.9,2.4197]
[1718187736159,10.6094,152.93,152.9,2.4197]
[1718187736329,2.4194,152.93,152.88,13.0303]
[1718187736535,10.6094,152.93,152.89,2.4198]
[1718187736735,10.6094,152.93,152.86,3.291175]
[1718187736736,10.6099,152.9,152.86,3.291175]
[1718187736953,10.6099,152.9,152.87,2.4203]
[1718187737440,5.0087,152.94,152.88,2.4201]
[1718187737643,10.6096,152.92,152.89,2.42]
[1718187737835,10.6096,152.92,152.88,2.4201]
[1718187738560,2.4198,152.91,152.87,10.6102]
[1718187738942,10.6098,152.91,152.88,2.4201]
[1718187739151,2.4195,152.93,152.89,2.4199]
[1718187739332,2.4199,152.9,152.87,2.4202]
[1718187740049,10.6098,152.91,152.87,2.4202]
[1718187740259,2.4199,152.9,152.87,2.4202]
[1718187740555,2.4197,152.91,152.88,2.4201]
[1718187740766,10.6097,152.91,152.88,2.4201]
[1718187741560,2.4198,152.91,152.88,2.4201]
[1718187741764,4.8398,152.9,152.86,0.870775]
[1718187742056,10.6102,152.88,152.86,0.870775]
[1718187742236,10.6101,152.89,152.86,0.870775]
[1718187742436,2.4202,152.88,152.86,0.870775]
[1718187742840,10.61,152.89,152.86,3.291175]
[1718187743038,2.4196,152.92,152.86,0.870775]
[1718187743346,10.6094,152.93,152.89,2.4199]
[1718187743677,2.4195,152.92,152.88,8.19]
[1718187743839,8.19,152.91,152.87,2.4202]
[1718187744042,8.19,152.9,152.86,0.870775]
[1718187744252,10.6099,152.9,152.86,3.291075]
[1718187744661,2.42,152.89,152.86,3.291075]
[1718187745256,2.4199,152.9,152.86,3.291075]
[1718187745451,10.6099,152.9,152.87,2.4203]
[1718187745965,2.4199,152.9,152.86,3.291175]
[1718187746149,2.42,152.89,152.86,3.291175]
[1718187746769,8.19,152.9,152.86,0.870775]
[1718187746770,10.6101,152.88,152.86,0.870775]
[1718187746957,2.4201,152.88,152.86,0.870775]
[1718187747470,10.6101,152.88,152.86,0.870775]
[1718187748266,2.4203,152.87,152.86,0.870775]
[1718187748462,10.6102,152.88,152.86,0.870775]
[1718187748670,10.6103,152.87,152.86,0.870775]
[1718187748872,8.19,152.87,152.86,0.870775]
[1718187749080,10.6103,152.87,152.86,0.870775]
[1718187749578,2.4212,152.82,152.75,6.4308]
[1718187749753,2.4216,152.8,152.75,6.4308]
[1718187749946,2.4216,152.8,152.77,2.4218]
[1718187749947,8.19,152.8,152.77,2.4218]
[1718187750164,8.19,152.8,152.78,2.4217]
[1718187750361,10.6114,152.8,152.76,2.422]
[1718187750572,8.19,152.8,152.76,2.422]
[1718187750778,10.6116,152.8,152.76,2.422]
[1718187751078,10.6117,152.79,152.75,2.4222]
[1718187751240,10.6116,152.79,152.75,2.4222]
[1718187751447,10.6116,152.79,152.76,2.422]
[1718187751649,10.6116,152.79,152.75,2.4222]
[1718187751945,2.4212,152.82,152.78,2.4217]
[1718187752571,10.6112,152.82,152.78,2.4217]
[1718187752770,0.17,152.85,152.76,9.6883]
[1718187752953,2.421,152.83,152.79,2.4215]
[1718187753477,8.7,152.85,152.82,2.421]
[1718187753665,8.7,152.85,152.79,8.19]
[1718187753850,10.6108,152.84,152.8,2.4213]
[1718187754177,8.19,152.84,152.8,2.4213]
[1718187754471,2.421,152.83,152.79,10.6115]
[1718187754776,2.4209,152.84,152.8,2.4214]
[1718187755263,0.51,152.85,152.78,4.8434]
[1718187755464,2.9307,152.85,152.81,2.4212]
[1718187755670,2.4207,152.85,152.81,2.4212]
[1718187755868,9.8539,152.83,152.71,7.190675]
[1718187756171,0.17,152.81,152.74,12.1119]
[1718187756366,2.4214,152.8,152.74,12.1119]
[1718187756567,2.4216,152.79,152.75,2.4221]
[1718187756947,2.4215,152.8,152.76,2.422]
[1718187757773,2.5913,152.81,152.77,2.4219]
[1718187758064,2.4214,152.8,152.76,2.422]
[1718187758243,2.7612,152.82,152.78,2.4217]
[1718187758450,2.4212,152.82,152.78,2.4217]
[1718187758659,2.4215,152.8,152.76,2.422]
[1718187759045,2.4215,152.8,152.73,27.2815]
[1718187759292,0.17,152.81,152.76,2.422]
[1718187759474,2.4215,152.8,152.76,2.422]
[1718187759654,5.3526,152.81,152.75,2.4221]
[1718187759851,2.4217,152.78,152.75,2.4221]
[1718187760267,2.4215,152.8,152.74,4.8447]
[1718187760583,0.17,152.79,152.73,15.169]
[1718187760881,0.17,152.81,152.76,2.422]
[1718187760882,2.5915,152.8,152.76,2.422]
[1718187761085,2.4215,152.8,152.77,2.4219]
[1718187761290,2.4216,152.79,152.75,2.4221]
[1718187761776,2.4215,152.8,152.77,2.4219]
[1718187762277,2.4213,152.81,152.77,2.4219]
[1718187762481,2.5912,152.82,152.78,2.4217]
[1718187762661,2.4215,152.8,152.76,2.422]
[1718187763160,2.4216,152.79,152.76,2.422]
[1718187763686,2.4215,152.8,152.76,2.422]
[1718187763856,2.4216,152.79,152.76,2.422]
[1718187764053,2.4215,152.8,152.76,2.422]
[1718187764456,2.4215,152.8,152.77,2.4219]
[1718187766289,12.1041,152.84,152.78,2.4217]
[1718187766458,2.4212,152.82,152.78,2.4217]
[1718187766655,2.4212,152.82,152.79,2.4216]
[1718187766980,2.4212,152.82,152.78,2.4216]
[1718187767363,2.4214,152.8,152.77,2.4218]
[1718187767787,2.4214,152.81,152.77,2.4218]
[1718187768156,2.4214,152.81,152.78,2.4217]
[1718187768581,0.17,152.81,152.76,2.422]
[1718187768767,2.4215,152.8,152.77,2.4219]
[1718187768969,2.4213,152.81,152.77,2.4219]
[1718187769376,4.8423,152.82,152.78,2.4217]
[1718187769377,2.4212,152.82,152.78,2.4217]
[1718187769672,2.4213,152.81,152.77,2.4218]
[1718187769869,2.4217,152.79,152.74,4.8445]
[1718187770087,2.4217,152.78,152.75,2.4221]
[1718187770273,2.4217,152.79,152.75,2.4221]
[1718187770582,2.4216,152.79,152.76,2.422]
[1718187771181,2.4215,152.8,152.76,2.422]
[1718187772384,4.8429,152.8,152.75,2.4222]
[1718187772686,2.4217,152.79,152.75,2.4222]
[1718187772988,2.4217,152.79,152.76,2.422]
[1718187773575,2.4217,152.78,152.75,2.4221]
[1718187773814,2.4217,152.79,152.76,2.422]
[1718187774912,8.4,152.8,152.77,2.4218]
[1718187775201,0.17,152.8,152.77,2.4218]
[1718187775372,2.7614,152.8,152.77,2.4218]
[1718187775569,4.8421,152.83,152.76,15.4962]
[1718187775770,2.4212,152.82,152.79,2.4215]
[1718187775990,10.651,152.83,152.79,2.4215]
[1718187776307,2.4211,152.82,152.78,13.0735]
[1718187776516,2.4209,152.84,152.8,2.4213]
[1718187776675,2.4209,152.84,152.79,10.6514]
[1718187776676,13.0716,152.84,152.79,10.6514]
[1718187776876,2.421,152.83,152.8,2.4214]
[1718187777377,2.421,152.83,152.79,2.4215]
[1718187778173,2.421,152.83,152.8,2.4214]
[1718187778618,2.4212,152.82,152.79,2.4216]
[1718187779602,8.57,152.81,152.75,4.8442]
[1718187779898,8.57,152.81,152.78,2.4217]
[1718187779899,10.6513,152.81,152.78,2.4217]
[1718187780076,10.6512,152.82,152.79,2.4215]
[1718187780275,2.421,152.83,152.8,2.4214]
[1718187781080,8.74,152.84,152.81,2.4212]
[1718187781081,11.1608,152.84,152.81,2.4212]
[1718187781277,2.4209,152.83,152.8,2.4213]
[1718187781481,4.8403,152.89,152.84,2.4207]
[1718187781678,2.4203,152.88,152.85,2.4206]
[1718187782204,2.4203,152.88,152.85,10.6505]
[1718187782205,2.4202,152.88,152.85,10.6505]
[1718187782503,8.23,152.89,152.84,8.23]
[1718187782700,8.23,152.88,152.84,2.4208]
[1718187783001,2.4204,152.87,152.84,2.4208]
[1718187783583,9.681,152.88,152.8,4.8427]
[1718187783902,2.4207,152.85,152.82,2.4211]
[1718187784103,2.4205,152.86,152.82,2.4211]
[1718187784291,2.4205,152.86,152.83,2.4209]
[1718187784609,2.4205,152.86,152.82,2.421]
[1718187784984,2.4205,152.86,152.83,2.4209]
[1718187785701,2.4209,152.84,152.81,2.4212]
[1718187786004,2.4207,152.85,152.82,2.4211]
[1718187787109,2.421,152.83,152.8,2.4214]
[1718187787288,2.4211,152.82,152.79,2.4215]
[1718187787597,5.3517,152.84,152.76,7.2662]
[1718187787598,2.4214,152.81,152.76,4.8441]
[1718187787777,2.4214,152.81,152.78,2.4217]
[1718187788500,2.4215,152.8,152.77,2.4218]
[1718187788706,2.4214,152.81,152.77,2.4218]
[1718187788909,0.17,152.82,152.77,2.4218]
[1718187789084,2.5909,152.84,152.81,2.4212]
[1718187789285,2.5907,152.85,152.79,12.1079]
[1718187789603,2.5907,152.85,152.82,2.4211]
[1718187790183,2.4208,152.84,152.81,2.4212]
[1718187791008,2.5907,152.85,152.81,2.4212]
[1718187791310,2.5907,152.85,152.82,2.4211]
[1718187791489,0.17,152.85,152.81,2.4212]
[1718187791698,2.5909,152.84,152.8,2.4213]
[1718187791999,2.4209,152.84,152.81,2.4212]
[1718187792418,0.17,152.85,152.8,2.4214]
[1718187792711,2.4209,152.84,152.81,2.4212]
[1718187793511,0.17,152.85,152.8,2.4214]
[1718187793512,2.421,152.83,152.8,2.4214]
[1718187793899,5.0113,152.85,152.79,2.4215]
[1718187793900,2.4211,152.82,152.79,2.4215]
[1718187794520,2.421,152.83,152.8,2.4214]
[1718187795596,2.7612,152.82,152.79,2.4215]
[1718187795822,0.34,152.82,152.8,2.4214]
[1718187796526,2.5914,152.81,152.78,2.4217]
[1718187796712,2.5914,152.81,152.77,2.4217]
[1718187796713,2.4215,152.8,152.77,2.4217]
[1718187798213,2.5914,152.8,152.77,2.4218]
[1718187798413,0.17,152.8,152.78,2.4217]
[1718187798593,0.34,152.8,152.78,2.4217]
[1718187798794,0.34,152.8,152.79,2.4216]
[1718187798995,0.51,152.8,152.79,2.4216]
[1718187799501,0.51,152.8,152.78,2.4217]
[1718187800614,0.17,152.79,152.77,2.4218]
[1718187801092,0.34,152.8,152.77,2.4218]
[1718187801292,0.34,152.8,152.78,2.4217]
[1718187801696,0.17,152.79,152.77,2.4218]
[1718187802313,0.34,152.79,152.76,2.4219]
[1718187802503,2.7617,152.79,152.76,2.4219]
[1718187802708,0.34,152.79,152.77,2.4218]
[1718187802912,2.7616,152.79,152.76,2.4219]
[1718187803215,0.34,152.79,152.76,2.4219]
[1718187803417,2.7616,152.79,152.76,2.4219]
[1718187803623,2.592,152.77,152.72,21.8041]
[1718187803831,2.5921,152.76,152.7,38.2144]
[1718187803999,0.17,152.76,152.73,2.4225]
[1718187804200,2.7621,152.76,152.73,2.4225]
[1718187804507,2.7621,152.76,152.71,5.716475]
[1718187804508,0.34,152.76,152.72,2.4226]
[1718187804812,2.4215,152.8,152.75,9.6888]
[1718187805015,2.4215,152.8,152.77,2.4219]
[1718187805519,2.4215,152.8,152.76,2.422]
[1718187805701,2.4216,152.79,152.76,2.422]
[1718187805905,2.4215,152.8,152.77,2.4219]
[1718187806206,15.4281,152.82,152.8,2.4214]
[1718187806403,2.4209,152.84,152.8,2.4213]
[1718187806603,2.4209,152.84,152.79,4.8432]
[1718187806936,2.4209,152.84,152.81,2.4212]
[1718187807126,21.3907,152.86,152.83,2.4209]
[1718187807391,23.8112,152.86,152.83,2.4209]
[1718187807823,23.8112,152.86,152.82,2.421]
[1718187808721,2.4207,152.85,152.82,2.421]
[1718187808925,0.51,152.84,152.82,2.421]
[1718187809445,0.51,152.84,152.76,9.6878]
[1718187809446,2.4213,152.82,152.76,9.6878]
[1718187809723,2.4213,152.82,152.72,24.66]
[1718187809724,34.4988,152.81,152.72,16.9584]
[1718187809927,0.17,152.79,152.75,2.4221]
[1718187810101,2.5917,152.79,152.75,2.4221]
[1718187810303,2.7618,152.78,152.75,2.4221]
[1718187810504,0.17,152.79,152.73,4.845]
[1718187810729,0.17,152.78,152.75,2.4221]
[1718187811024,0.34,152.78,152.76,2.422]
[1718187811211,0.17,152.79,152.77,2.4218]
[1718187811413,24.3033,152.81,152.77,2.4218]
[1718187811414,0.17,152.8,152.77,2.4218]
[1718187811612,0.17,152.79,152.77,2.4218]
[1718187811817,0.34,152.79,152.77,2.4218]
[1718187813312,0.34,152.79,152.73,2.4224]
[1718187813313,2.422,152.77,152.73,2.4224]
[1718187813561,0.51,152.76,152.72,2.4226]
[1718187813707,0.51,152.76,152.71,3.293575]
[1718187813708,2.4222,152.75,152.71,3.293575]
[1718187814438,2.9321,152.76,152.72,2.4227]
[1718187815320,2.5927,152.72,152.71,0.870775]
[1718187815523,17.129,152.72,152.71,0.870775]
[1718187815711,69.9072,152.72,152.71,0.870775]
[1718187815913,60.2163,152.72,152.71,0.870775]
[1718187816309,69.9072,152.72,152.71,0.870775]
[1718187817442,60.2163,152.72,152.71,0.870775]
[1718187818226,69.9072,152.72,152.71,0.870775]
[1718187818430,60.2163,152.72,152.71,0.870775]
[1718187818689,69.9072,152.72,152.71,0.870775]
[1718187820830,2.4227,152.72,152.71,0.870775]
[1718187821950,7.2681,152.72,152.71,0.870775]
[1718187822426,7.9481,152.72,152.71,0.870775]
[1718187822824,15.2163,152.72,152.71,0.870775]
[1718187823448,7.9481,152.72,152.71,0.870775]
[1718187823834,52.9481,152.72,152.71,0.870775]
[1718187824556,60.2163,152.72,152.71,0.870775]
[1718187824754,69.9072,152.72,152.71,0.870775]
[1718187825437,60.2163,152.72,152.71,0.870775]
[1718187825636,52.9481,152.72,152.71,0.870775]
[1718187826551,4.8454,152.72,152.71,0.870775]
[1718187826757,7.2681,152.72,152.71,0.870775]
[1718187826966,2.4227,152.72,152.71,0.870775]
[1718187827837,2.9327,152.72,152.71,0.870775]
[1718187828045,3.1027,152.72,152.71,0.870775]
[1718187828659,52.9481,152.72,152.71,0.870775]
[1718187828855,7.9481,152.72,152.71,0.870775]
[1718187830349,2.9327,152.72,152.71,0.870775]
[1718187830759,3.1027,152.72,152.71,0.870775]
[1718187832467,69.9072,152.72,152.71,0.870775]
[1718187839063,169.9072,152.72,152.71,0.870775]
[1718187839254,170.30174211,152.72,152.71,0.870775]
[1718187840911,70.30174211,152.72,152.71,0.870775]
[1718187843380,53.34264211,152.72,152.71,0.870775]
[1718187843680,25.30174211,152.72,152.71,0.870775]
[1718187843848,70.30174211,152.72,152.71,0.870775]
[1718187844649,170.30174211,152.72,152.71,0.870775]
[1718187846671,0.17,152.63,152.62,15.0094]
[1718187848104,2.7641,152.63,152.59,2.4247]
[1718187848970,2.7641,152.63,152.6,2.4246]
[1718187849157,0.34,152.63,152.6,2.4246]
[1718187849881,2.7641,152.63,152.6,2.4246]
[1718187850081,0.17,152.62,152.58,0.04076138]
[1718187850250,0.17,152.61,152.59,2.4247]
[1718187850456,0.34,152.61,152.59,2.4247]
[1718187851176,0.34,152.61,152.6,2.4246]
[1718187852176,0.34,152.61,152.59,2.4247]
[1718187852486,0.34,152.61,152.58,0.04076138]
[1718187852965,0.34,152.61,152.59,2.4247]
[1718187853556,0.17,152.6,152.59,2.4247]
[1718187853754,0.17,152.59,152.58,0.04076138]
[1718187853963,0.17,152.59,152.58,2.46566138]
[1718187854497,0.34,152.61,152.58,2.46556138]
[1718187854776,0.34,152.6,152.58,2.46566138]
[1718187855688,0.34,152.6,152.58,0.04076138]
[1718187859084,0.34,152.6,152.58,2.46566138]
[1718187859387,0.34,152.6,152.58,2.46556138]
[1718187859588,0.34,152.6,152.58,0.04076138]
[1718187859982,2.7646,152.6,152.58,0.04076138]
[1718187860189,0.34,152.6,152.58,0.04076138]
[1718187860970,0.34,152.6,152.58,2.46566138]
[1718187861173,0.17,152.61,152.59,2.4247]
[1718187861375,0.34,152.61,152.59,2.4247]
[1718187861580,0.34,152.61,152.58,2.46556138]
[1718187862011,0.34,152.61,152.6,2.4246]
[1718187862289,0.17,152.61,152.6,2.4246]
[1718187862512,0.17,152.62,152.6,2.4246]
[1718187863583,0.17,152.62,152.59,2.4247]
[1718187863999,2.5943,152.62,152.59,2.4247]
[1718187864172,0.17,152.6,152.58,2.46556138]
[1718187864575,0.17,152.61,152.58,2.46556138]
[1718187864973,0.17,152.61,152.59,2.4247]
[1718187865477,2.7644,152.62,152.58,10.71566138]
[1718187865685,0.34,152.62,152.59,2.4247]
[1718187865877,0.17,152.62,152.59,2.4247]
[1718187866079,2.4243,152.62,152.59,2.4247]
[1718187866467,2.4243,152.62,152.58,10.71556138]
[1718187866675,0.17,152.6,152.58,0.04076138]
[1718187866897,2.5946,152.6,152.58,0.04076138]
[1718187868698,0.17,152.59,152.58,0.04076138]
[1718187869298,2.5947,152.59,152.58,0.04076138]
[1718187869479,0.17,152.59,152.58,0.04076138]
[1718187869889,22.06585135,152.85,152.58,0.04076138]
[1718187869890,7.2715,152.65,152.58,0.04076138]
[1718187870078,2.4244,152.61,152.58,2.46556138]
[1718187871899,2.4242,152.63,152.6,2.4245]
[1718187872096,0.34,152.62,152.59,2.4246]
[1718187872399,2.7643,152.62,152.59,2.4246]
[1718187872600,0.17,152.61,152.59,2.4246]
[1718187872783,0.17,152.61,152.58,0.04076138]
[1718187872784,8.42,152.61,152.58,0.04076138]
[1718187872973,0.17,152.59,152.58,0.04076138]
[1718187873399,0.17,152.59,152.58,2.46566138]
[1718187874276,0.17,152.59,152.58,0.04076138]
[1718187875498,2.5947,152.59,152.58,0.04076138]
[1718187875684,11.3547,152.59,152.58,0.04076138]